[Event "RUS-ch Blitz 2021"]
[Site "Sochi"]
[Date "2021.10.11"]
[Round "8.10"]
[White "Khanin, Semen"]
[Black "Lysyj, Igor"]
[Result "1-0"]
[ECO "D41"]
[WhiteElo "2521"]
[BlackElo "2603"]
[Annotator "ChessBase"]
[PlyCount "63"]
[EventDate "2021.10.11"]
[EventType "blitz"]
[EventCountry "RUS"]
[SourceTitle "playchess.com"]
[Source "ChessBase"]
[SourceQuality "1"]
[TimeControl "180+2"]

1. d4 {[%emt 0:00:00]} Nf6 {[%emt 0:00:00]} 2. c4 {[%emt 0:00:00]} e6 {[%emt 0:
00:06]} 3. Nf3 {[%emt 0:00:05]} d5 {[%emt 0:00:00]} 4. Nc3 {[%emt 0:00:00]} c5
{[%emt 0:00:00]} 5. cxd5 {[%emt 0:00:14]} Nxd5 {[%emt 0:00:00]} 6. e4 {[%emt 0:
00:00]} Nxc3 {[%emt 0:00:00]} 7. bxc3 {[%emt 0:00:00]} cxd4 {[%emt 0:00:00]} 8.
cxd4 {[%emt 0:00:00]} Bb4+ {[%emt 0:00:02]} 9. Bd2 {[%emt 0:00:00]} Bxd2+ {
[%emt 0:00:00]} 10. Qxd2 {[%emt 0:00:00]} O-O {[%emt 0:00:00]} 11. Bc4 {
[%emt 0:00:04]} Nd7 {[%emt 0:00:02]} 12. O-O {[%emt 0:00:03]} b6 {[%emt 0:00:
01]} 13. Rad1 {[%emt 0:00:09]} Bb7 {[%emt 0:00:08]} 14. Rfe1 {[%emt 0:00:00]}
Rc8 {[%emt 0:00:02]} 15. Bb3 {[%emt 0:00:00]} Nf6 {[%emt 0:00:03]} 16. Qf4 {
[%emt 0:00:10]} Qc7 {[%emt 0:00:01]} 17. Ne5 {[%emt 0:00:08]} Rfd8 {[%emt 0:00:
42]} 18. g4 {[%emt 0:00:34]} b5 {[%emt 0:00:10]} 19. g5 {[%emt 0:00:15]} Ne8 {
[%emt 0:00:00]} 20. Rd3 {[%emt 0:00:12]} Nd6 {[%emt 0:00:20]} 21. Rh3 {[%emt 0:
00:17]} Qa5 {[%emt 0:01:03]} 22. Re2 {[%emt 0:00:24]} Qa3 {[%emt 0:00:41]} 23.
Qh4 {[%emt 0:00:25]} Qc1+ {[%emt 0:00:00]} 24. Kg2 {[%emt 0:00:00]} Kf8 {
[%emt 0:00:00]} 25. Rf3 {[%emt 0:00:32]} Rc3 {[%emt 0:00:11]} 26. g6 {[%emt 0:
00:00]} f6 {[%emt 0:00:10]} 27. Rxf6+ {[%emt 0:00:08]} gxf6 {[%emt 0:00:06]}
28. Qxf6+ {[%emt 0:00:04]} Ke8 {[%emt 0:00:02]} 29. Qxe6+ {[%emt 0:00:01]} Kf8
{[%emt 0:00:00]} 30. Qf6+ {[%emt 0:00:00]} Ke8 {[%emt 0:00:00]} 31. Bf7+ {
[%emt 0:00:04]} Kf8 {[%emt 0:00:00]} 32. g7# {[%emt 0:00:00]} 1-0

[Event "RUS-ch Blitz 2021"]
[Site "Sochi"]
[Date "2021.10.11"]
[Round "8.11"]
[White "Gutenev, Alexander"]
[Black "Kobalia, Mikhail"]
[Result "1-0"]
[ECO "B10"]
[WhiteElo "2455"]
[BlackElo "2600"]
[Annotator "ChessBase"]
[PlyCount "78"]
[EventDate "2021.10.11"]
[EventType "blitz"]
[EventCountry "RUS"]
[SourceTitle "playchess.com"]
[Source "ChessBase"]
[SourceQuality "1"]
[TimeControl "180+2"]

1. e4 {[%emt 0:00:00]} c6 {[%emt 0:00:00]} 2. Nf3 {[%emt 0:00:00]} d5 {[%emt 0:
00:00]} 3. d3 {[%emt 0:00:09]} g6 {[%emt 0:00:18]} 4. e5 {[%emt 0:00:00]} Bg7 {
[%emt 0:00:00]} 5. d4 {[%emt 0:00:00]} f6 {[%emt 0:00:00]} 6. exf6 {[%emt 0:00:
22]} Nxf6 {[%emt 0:00:00]} 7. h3 {[%emt 0:00:03]} O-O {[%emt 0:00:10]} 8. Bd3 {
[%emt 0:00:10]} c5 {[%emt 0:00:00]} 9. c3 {[%emt 0:00:00]} Nc6 {[%emt 0:00:06]}
10. O-O {[%emt 0:00:01]} Qb6 {[%emt 0:00:00]} 11. Na3 {[%emt 0:01:37]} cxd4 {
[%emt 0:00:24]} 12. cxd4 {[%emt 0:00:00]} Nxd4 {[%emt 0:00:03]} 13. Nxd4 {
[%emt 0:00:06]} Qxd4 {[%emt 0:00:00]} 14. Nb5 {[%emt 0:00:00]} Qh4 {[%emt 0:00:
04]} 15. Qe2 {[%emt 0:00:14]} Ne4 {[%emt 0:01:08]} 16. Nc7 {[%emt 0:00:15]}
Bxh3 {[%emt 0:00:00]} 17. gxh3 {[%emt 0:00:17]} Qxh3 {[%emt 0:00:26]} 18. Bxe4
{[%emt 0:00:01]} dxe4 {[%emt 0:00:03]} 19. Qxe4 {[%emt 0:00:04]} Rf5 {[%emt 0:
00:19]} 20. Qg2 {[%emt 0:00:00]} Qxg2+ {[%emt 0:00:05]} 21. Kxg2 {[%emt 0:00:
05]} Rc8 {[%emt 0:00:03]} 22. Ne6 {[%emt 0:00:03]} Bf6 {[%emt 0:00:06]} 23. Be3
{[%emt 0:00:05]} Rc2 {[%emt 0:00:01]} 24. Nd4 {[%emt 0:00:00]} Bxd4 {[%emt 0:
00:06]} 25. Bxd4 {[%emt 0:00:06]} a6 {[%emt 0:00:06]} 26. Rac1 {[%emt 0:00:01]}
Rxc1 {[%emt 0:00:06]} 27. Rxc1 {[%emt 0:00:01]} Rd5 {[%emt 0:00:00]} 28. Be3 {
[%emt 0:00:02]} Rd7 {[%emt 0:00:06]} 29. Kf3 {[%emt 0:00:00]} Kf7 {[%emt 0:00:
00]} 30. Ke4 {[%emt 0:00:00]} Ke6 {[%emt 0:00:00]} 31. a4 {[%emt 0:00:08]} h5 {
[%emt 0:00:06]} 32. b4 {[%emt 0:00:00]} Kf7 {[%emt 0:00:06]} 33. b5 {[%emt 0:
00:00]} axb5 {[%emt 0:00:00]} 34. axb5 {[%emt 0:00:04]} Kf6 {[%emt 0:00:00]}
35. b6 {[%emt 0:00:01]} h4 {[%emt 0:00:08]} 36. Rh1 {[%emt 0:00:10]} g5 {
[%emt 0:00:12]} 37. Rg1 {[%emt 0:00:00]} Ke6 {[%emt 0:00:00]} 38. Rxg5 {
[%emt 0:00:02]} Rd1 {[%emt 0:00:04]} 39. Rh5 {[%emt 0:00:00]} Rh1 {[%emt 0:00:
02]} 1-0

[Event "RUS-ch Blitz 2021"]
[Site "Sochi"]
[Date "2021.10.11"]
[Round "8.12"]
[White "Rozum, Ivan"]
[Black "Bryakin, Mikhail"]
[Result "1-0"]
[ECO "A07"]
[WhiteElo "2529"]
[BlackElo "2498"]
[Annotator "ChessBase"]
[PlyCount "137"]
[EventDate "2021.10.11"]
[EventType "blitz"]
[EventCountry "RUS"]
[SourceTitle "playchess.com"]
[Source "ChessBase"]
[SourceQuality "1"]
[TimeControl "180+2"]

1. b3 {[%emt 0:00:00]} d5 {[%emt 0:00:00]} 2. Bb2 {[%emt 0:00:00]} Nf6 {
[%emt 0:00:00]} 3. Nf3 {[%emt 0:00:07]} Bf5 {[%emt 0:00:04]} 4. Nh4 {[%emt 0:
00:00]} Bc8 {[%emt 0:00:14]} 5. d3 {[%emt 0:00:07]} c6 {[%emt 0:00:00]} 6. Nd2
{[%emt 0:00:05]} g6 {[%emt 0:00:10]} 7. g3 {[%emt 0:00:02]} Bg7 {[%emt 0:00:03]
} 8. Bg2 {[%emt 0:00:02]} O-O {[%emt 0:00:00]} 9. O-O {[%emt 0:00:05]} Nbd7 {
[%emt 0:00:06]} 10. Nhf3 {[%emt 0:00:00]} Re8 {[%emt 0:00:03]} 11. e4 {[%emt 0:
00:03]} e5 {[%emt 0:00:06]} 12. Re1 {[%emt 0:00:00]} d4 {[%emt 0:00:30]} 13.
Nc4 {[%emt 0:00:01]} Qc7 {[%emt 0:00:00]} 14. a4 {[%emt 0:00:07]} b5 {[%emt 0:
00:16]} 15. Ncd2 {[%emt 0:00:15]} Bb7 {[%emt 0:00:05]} 16. c3 {[%emt 0:00:09]}
dxc3 {[%emt 0:00:00]} 17. Bxc3 {[%emt 0:00:01]} a6 {[%emt 0:00:06]} 18. Qc2 {
[%emt 0:00:02]} c5 {[%emt 0:00:32]} 19. Rec1 {[%emt 0:00:14]} Qd6 {[%emt 0:00:
02]} 20. Nf1 {[%emt 0:00:11]} Bh6 {[%emt 0:00:08]} 21. Rd1 {[%emt 0:00:08]} Bc6
{[%emt 0:00:05]} 22. Qb2 {[%emt 0:00:24]} Nh5 {[%emt 0:00:44]} 23. Ne3 {
[%emt 0:00:08]} Bg7 {[%emt 0:00:11]} 24. Ng4 {[%emt 0:00:48]} f6 {[%emt 0:00:
04]} 25. Ne3 {[%emt 0:00:05]} Kh8 {[%emt 0:00:00]} 26. b4 {[%emt 0:00:17]} cxb4
{[%emt 0:00:03]} 27. Bxb4 {[%emt 0:00:03]} Qb8 {[%emt 0:00:13]} 28. axb5 {
[%emt 0:00:10]} axb5 {[%emt 0:00:01]} 29. Rac1 {[%emt 0:00:02]} Ra6 {[%emt 0:
00:00]} 30. Nd2 {[%emt 0:00:00]} Bf8 {[%emt 0:00:00]} 31. Bxf8 {[%emt 0:00:15]}
Nxf8 {[%emt 0:00:02]} 32. Nb3 {[%emt 0:00:00]} Ne6 {[%emt 0:00:00]} 33. d4 {
[%emt 0:00:00]} exd4 {[%emt 0:00:08]} 34. Nxd4 {[%emt 0:00:00]} Nxd4 {[%emt 0:
00:00]} 35. Qxd4 {[%emt 0:00:03]} Qe5 {[%emt 0:00:00]} 36. Qxe5 {[%emt 0:00:03]
} fxe5 {[%emt 0:00:00]} 37. Rd6 {[%emt 0:00:01]} Bb7 {[%emt 0:00:04]} 38. Rd7 {
[%emt 0:00:02]} Bc8 {[%emt 0:00:00]} 39. Rdc7 {[%emt 0:00:07]} Ra8 {[%emt 0:00:
05]} 40. Nd5 {[%emt 0:00:00]} Rb8 {[%emt 0:00:03]} 41. Bf3 {[%emt 0:00:02]} Ng7
{[%emt 0:00:00]} 42. Be2 {[%emt 0:00:10]} b4 {[%emt 0:00:02]} 43. Bc4 {[%emt 0:
00:04]} Bh3 {[%emt 0:00:05]} 44. Bb3 {[%emt 0:00:02]} Ne6 {[%emt 0:00:05]} 45.
Ra7 {[%emt 0:00:01]} Rec8 {[%emt 0:00:01]} 46. Rca1 {[%emt 0:00:05]} Rf8 {
[%emt 0:00:05]} 47. Re7 {[%emt 0:00:01]} Rbe8 {[%emt 0:00:02]} 48. Rxe8 {
[%emt 0:00:03]} Rxe8 {[%emt 0:00:03]} 49. Nxb4 {[%emt 0:00:00]} Nd4 {[%emt 0:
00:00]} 50. Bd5 {[%emt 0:00:03]} Rb8 {[%emt 0:00:03]} 51. Nd3 {[%emt 0:00:01]}
Nf3+ {[%emt 0:00:03]} 52. Kh1 {[%emt 0:00:00]} Kg7 {[%emt 0:00:01]} 53. Rd1 {
[%emt 0:00:03]} g5 {[%emt 0:00:02]} 54. Ba2 {[%emt 0:00:04]} Ra8 {[%emt 0:00:
00]} 55. Bd5 {[%emt 0:00:00]} Rb8 {[%emt 0:00:03]} 56. Bc6 {[%emt 0:00:00]} g4
{[%emt 0:00:00]} 57. Bd7 {[%emt 0:00:01]} Kf6 {[%emt 0:00:03]} 58. Bf5 {
[%emt 0:00:03]} h5 {[%emt 0:00:01]} 59. Ne1 {[%emt 0:00:02]} Rb2 {[%emt 0:00:
05]} 60. Nxf3 {[%emt 0:00:01]} Rxf2 {[%emt 0:00:03]} 61. Nh4 {[%emt 0:00:04]}
Kg5 {[%emt 0:00:02]} 62. Kg1 {[%emt 0:00:03]} Rb2 {[%emt 0:00:01]} 63. Ng6 {
[%emt 0:00:00]} Kf6 {[%emt 0:00:04]} 64. Rd6+ {[%emt 0:00:01]} Kg7 {[%emt 0:00:
00]} 65. Nxe5 {[%emt 0:00:03]} Rg2+ {[%emt 0:00:01]} 66. Kh1 {[%emt 0:00:02]}
Rf2 {[%emt 0:00:00]} 67. Rd1 {[%emt 0:00:01]} Kf6 {[%emt 0:00:02]} 68. Nd3 {
[%emt 0:00:01]} Re2 {[%emt 0:00:01]} 69. Nf4 {[%emt 0:00:00]} 1-0

[Event "RUS-ch Blitz 2021"]
[Site "Sochi"]
[Date "2021.10.11"]
[Round "8.13"]
[White "Popov, Valerij"]
[Black "Mikhailovsky, Vladimir"]
[Result "0-1"]
[ECO "D30"]
[WhiteElo "2537"]
[BlackElo "2184"]
[Annotator "ChessBase"]
[PlyCount "58"]
[EventDate "2021.10.11"]
[EventType "blitz"]
[EventCountry "RUS"]
[SourceTitle "playchess.com"]
[Source "ChessBase"]
[SourceQuality "1"]
[TimeControl "180+2"]

1. Nf3 {[%emt 0:00:00]} e6 {[%emt 0:00:00]} 2. c4 {[%emt 0:00:11]} d5 {[%emt 0:
00:04]} 3. d4 {[%emt 0:00:00]} Nf6 {[%emt 0:00:09]} 4. e3 {[%emt 0:00:00]} a6 {
[%emt 0:00:00]} 5. b3 {[%emt 0:00:04]} b6 {[%emt 0:00:08]} 6. Bd3 {[%emt 0:00:
00]} Bb7 {[%emt 0:00:00]} 7. O-O {[%emt 0:00:04]} Bd6 {[%emt 0:00:02]} 8. cxd5
{[%emt 0:00:03]} exd5 {[%emt 0:00:02]} 9. Ba3 {[%emt 0:00:01]} O-O {[%emt 0:00:
04]} 10. Bxd6 {[%emt 0:00:08]} Qxd6 {[%emt 0:00:00]} 11. Nc3 {[%emt 0:00:08]}
Nbd7 {[%emt 0:00:00]} 12. Rc1 {[%emt 0:00:00]} h6 {[%emt 0:00:23]} 13. Qc2 {
[%emt 0:00:10]} c5 {[%emt 0:00:05]} 14. dxc5 {[%emt 0:00:11]} bxc5 {[%emt 0:00:
05]} 15. Rfd1 {[%emt 0:00:15]} Rac8 {[%emt 0:00:14]} 16. Bf5 {[%emt 0:00:08]}
Rc7 {[%emt 0:00:14]} 17. Na4 {[%emt 0:00:30]} d4 {[%emt 0:00:23]} 18. Nxd4 {
[%emt 0:00:15]} Rfc8 {[%emt 0:01:20]} 19. Nf3 {[%emt 0:00:21]} Qe7 {[%emt 0:00:
02]} 20. Nb2 {[%emt 0:00:09]} Bxf3 {[%emt 0:00:04]} 21. gxf3 {[%emt 0:00:04]}
Rb8 {[%emt 0:00:16]} 22. f4 {[%emt 0:00:14]} Nb6 {[%emt 0:00:04]} 23. Nd3 {
[%emt 0:00:14]} c4 {[%emt 0:00:03]} 24. Ne5 {[%emt 0:00:02]} c3 {[%emt 0:00:03]
} 25. Nc4 {[%emt 0:00:25]} Nbd5 {[%emt 0:00:00]} 26. a3 {[%emt 0:00:02]} Rcb7 {
[%emt 0:00:04]} 27. Bh3 {[%emt 0:00:09]} Rxb3 {[%emt 0:00:00]} 28. Bg2 {
[%emt 0:00:04]} Nc7 {[%emt 0:00:05]} 29. Ne5 {[%emt 0:00:00]} Qxa3 {[%emt 0:00:
00]} 0-1

[Event "RUS-ch Blitz 2021"]
[Site "Sochi"]
[Date "2021.10.11"]
[Round "8.14"]
[White "Shubin, Kirill"]
[Black "Bocharov, Dmitry"]
[Result "1-0"]
[ECO "B40"]
[WhiteElo "2463"]
[BlackElo "2517"]
[Annotator "ChessBase"]
[PlyCount "137"]
[EventDate "2021.10.11"]
[EventType "blitz"]
[EventCountry "RUS"]
[SourceTitle "playchess.com"]
[Source "ChessBase"]
[SourceQuality "1"]
[TimeControl "180+2"]

1. e4 {[%emt 0:00:00]} c5 {[%emt 0:00:00]} 2. Nf3 {[%emt 0:00:00]} e6 {[%emt 0:
00:10]} 3. g3 {[%emt 0:00:02]} Nc6 {[%emt 0:00:00]} 4. Bg2 {[%emt 0:00:00]} Nf6
{[%emt 0:00:00]} 5. Qe2 {[%emt 0:00:00]} e5 {[%emt 0:00:08]} 6. O-O {[%emt 0:
00:12]} Be7 {[%emt 0:00:00]} 7. d3 {[%emt 0:00:00]} O-O {[%emt 0:00:04]} 8. c4
{[%emt 0:00:00]} d6 {[%emt 0:00:09]} 9. Nc3 {[%emt 0:00:12]} a6 {[%emt 0:00:04]
} 10. a4 {[%emt 0:00:08]} Rb8 {[%emt 0:00:05]} 11. h3 {[%emt 0:00:07]} Bd7 {
[%emt 0:00:07]} 12. Bd2 {[%emt 0:00:13]} Nd4 {[%emt 0:00:50]} 13. Nxd4 {
[%emt 0:00:00]} cxd4 {[%emt 0:00:04]} 14. Nd5 {[%emt 0:00:05]} Nxd5 {[%emt 0:
00:00]} 15. exd5 {[%emt 0:00:02]} a5 {[%emt 0:00:15]} 16. b4 {[%emt 0:00:30]}
axb4 {[%emt 0:00:03]} 17. Bxb4 {[%emt 0:00:00]} b6 {[%emt 0:00:03]} 18. a5 {
[%emt 0:00:08]} Ra8 {[%emt 0:00:00]} 19. axb6 {[%emt 0:00:28]} Qxb6 {[%emt 0:
00:03]} 20. Rab1 {[%emt 0:00:07]} Rfb8 {[%emt 0:00:14]} 21. Rb2 {[%emt 0:00:28]
} Qc7 {[%emt 0:00:07]} 22. Rfb1 {[%emt 0:00:10]} g6 {[%emt 0:00:11]} 23. Kh2 {
[%emt 0:00:10]} Kg7 {[%emt 0:00:07]} 24. f4 {[%emt 0:00:07]} Bf6 {[%emt 0:00:
04]} 25. fxe5 {[%emt 0:00:13]} Bxe5 {[%emt 0:00:00]} 26. Bd2 {[%emt 0:00:00]}
Rxb2 {[%emt 0:00:05]} 27. Rxb2 {[%emt 0:00:00]} Re8 {[%emt 0:00:00]} 28. Qf2 {
[%emt 0:00:04]} Bf5 {[%emt 0:00:01]} 29. Bf1 {[%emt 0:00:05]} h5 {[%emt 0:00:
01]} 30. h4 {[%emt 0:00:03]} Qa7 {[%emt 0:00:12]} 31. Bf4 {[%emt 0:00:04]} Bxf4
{[%emt 0:00:09]} 32. Qxf4 {[%emt 0:00:00]} Re5 {[%emt 0:00:16]} 33. Rf2 {
[%emt 0:00:05]} Kg8 {[%emt 0:00:02]} 34. Qc1 {[%emt 0:00:11]} Re3 {[%emt 0:00:
00]} 35. Qb1 {[%emt 0:00:05]} Qe7 {[%emt 0:00:02]} 36. Qb6 {[%emt 0:00:11]} Qe5
{[%emt 0:00:02]} 37. Qd8+ {[%emt 0:00:03]} Kg7 {[%emt 0:00:02]} 38. Qg5 {
[%emt 0:00:00]} Bxd3 {[%emt 0:00:10]} 39. Qxe5+ {[%emt 0:00:00]} dxe5 {[%emt 0:
00:00]} 40. Bxd3 {[%emt 0:00:03]} Rxd3 {[%emt 0:00:00]} 41. d6 {[%emt 0:00:03]}
Kf8 {[%emt 0:00:00]} 42. c5 {[%emt 0:00:03]} Rc3 {[%emt 0:00:01]} 43. Ra2 {
[%emt 0:00:00]} Ke8 {[%emt 0:00:09]} 44. Ra8+ {[%emt 0:00:00]} Kd7 {[%emt 0:00:
03]} 45. Ra7+ {[%emt 0:00:00]} Kd8 {[%emt 0:00:00]} 46. Ra8+ {[%emt 0:00:00]}
Kd7 {[%emt 0:00:01]} 47. Ra7+ {[%emt 0:00:02]} Ke6 {[%emt 0:00:07]} 48. Re7+ {
[%emt 0:00:00]} Kf6 {[%emt 0:00:00]} 49. Re8 {[%emt 0:00:03]} Rxc5 {[%emt 0:00:
12]} 50. d7 {[%emt 0:00:01]} Rd5 {[%emt 0:00:02]} 51. d8=Q+ {[%emt 0:00:01]}
Rxd8 {[%emt 0:00:00]} 52. Rxd8 {[%emt 0:00:01]} Kf5 {[%emt 0:00:02]} 53. Kg2 {
[%emt 0:00:02]} Ke4 {[%emt 0:00:00]} 54. Rd7 {[%emt 0:00:06]} f6 {[%emt 0:00:
02]} 55. Rd6 {[%emt 0:00:01]} Kf5 {[%emt 0:00:00]} 56. Kf2 {[%emt 0:00:03]} g5
{[%emt 0:00:03]} 57. hxg5 {[%emt 0:00:04]} Kxg5 {[%emt 0:00:01]} 58. Kf3 {
[%emt 0:00:00]} Kf5 {[%emt 0:00:02]} 59. Rd5 {[%emt 0:00:03]} Ke6 {[%emt 0:00:
00]} 60. Ra5 {[%emt 0:00:02]} Kf5 {[%emt 0:00:01]} 61. Rb5 {[%emt 0:00:02]} Ke6
{[%emt 0:00:00]} 62. Ke4 {[%emt 0:00:04]} f5+ {[%emt 0:00:03]} 63. Kf3 {
[%emt 0:00:01]} Kf6 {[%emt 0:00:01]} 64. Rb6+ {[%emt 0:00:03]} Kg5 {[%emt 0:00:
00]} 65. Rd6 {[%emt 0:00:04]} e4+ {[%emt 0:00:03]} 66. Kf2 {[%emt 0:00:02]} d3
{[%emt 0:00:01]} 67. Ke3 {[%emt 0:00:01]} Kg4 {[%emt 0:00:06]} 68. Rg6+ {
[%emt 0:00:02]} Kh3 {[%emt 0:00:03]} 69. Rg5 {[%emt 0:00:01]} 1-0

[Event "RUS-ch Blitz 2021"]
[Site "Sochi"]
[Date "2021.10.11"]
[Round "8.15"]
[White "Demidov, Mikhail"]
[Black "Samusenko, Maksim"]
[Result "1/2-1/2"]
[ECO "A49"]
[WhiteElo "2551"]
[BlackElo "2461"]
[Annotator "ChessBase"]
[PlyCount "125"]
[EventDate "2021.10.11"]
[EventType "blitz"]
[EventCountry "RUS"]
[SourceTitle "playchess.com"]
[Source "ChessBase"]
[SourceQuality "1"]
[TimeControl "180+2"]

1. Nf3 {[%emt 0:00:04]} Nf6 {[%emt 0:00:00]} 2. g3 {[%emt 0:00:00]} d6 {
[%emt 0:00:00]} 3. d4 {[%emt 0:00:11]} g6 {[%emt 0:00:03]} 4. b3 {[%emt 0:00:
00]} Bg7 {[%emt 0:00:00]} 5. Bb2 {[%emt 0:00:00]} O-O {[%emt 0:00:00]} 6. Bg2 {
[%emt 0:00:00]} c5 {[%emt 0:00:11]} 7. O-O {[%emt 0:00:00]} cxd4 {[%emt 0:00:
00]} 8. Nxd4 {[%emt 0:00:00]} d5 {[%emt 0:00:00]} 9. c4 {[%emt 0:00:00]} dxc4 {
[%emt 0:00:02]} 10. Na3 {[%emt 0:00:04]} cxb3 {[%emt 0:00:32]} 11. axb3 {
[%emt 0:00:00]} Nc6 {[%emt 0:00:36]} 12. Nxc6 {[%emt 0:00:04]} bxc6 {[%emt 0:
00:00]} 13. Nc4 {[%emt 0:00:04]} Be6 {[%emt 0:00:10]} 14. Na5 {[%emt 0:00:05]}
Bd5 {[%emt 0:00:33]} 15. Nxc6 {[%emt 0:00:04]} Bxc6 {[%emt 0:00:00]} 16. Bxc6 {
[%emt 0:00:00]} Rb8 {[%emt 0:00:00]} 17. Qxd8 {[%emt 0:01:17]} Rfxd8 {[%emt 0:
00:00]} 18. Rxa7 {[%emt 0:00:58]} Rxb3 {[%emt 0:00:00]} 19. Ba3 {[%emt 0:00:10]
} e6 {[%emt 0:00:09]} 20. Bf3 {[%emt 0:00:07]} Bf8 {[%emt 0:00:12]} 21. Bc1 {
[%emt 0:00:07]} h6 {[%emt 0:00:05]} 22. Be3 {[%emt 0:00:06]} Rbb8 {[%emt 0:00:
38]} 23. Kg2 {[%emt 0:00:12]} Kg7 {[%emt 0:00:01]} 24. Rfa1 {[%emt 0:00:05]}
Bd6 {[%emt 0:00:21]} 25. R1a6 {[%emt 0:00:00]} g5 {[%emt 0:00:12]} 26. h3 {
[%emt 0:00:00]} Kg6 {[%emt 0:00:06]} 27. g4 {[%emt 0:00:10]} Be5 {[%emt 0:00:
00]} 28. Rc6 {[%emt 0:00:03]} Bd4 {[%emt 0:00:00]} 29. Bxd4 {[%emt 0:00:03]}
Rxd4 {[%emt 0:00:01]} 30. Rcc7 {[%emt 0:00:00]} Rf8 {[%emt 0:00:00]} 31. e3 {
[%emt 0:00:02]} Rb4 {[%emt 0:00:01]} 32. Bd1 {[%emt 0:00:00]} Nd5 {[%emt 0:00:
09]} 33. Rc6 {[%emt 0:00:06]} Rb2 {[%emt 0:00:00]} 34. Kf3 {[%emt 0:00:00]} Nf6
{[%emt 0:00:05]} 35. Bc2+ {[%emt 0:00:06]} Kg7 {[%emt 0:00:00]} 36. Bd3 {
[%emt 0:00:03]} Kg8 {[%emt 0:00:00]} 37. Rcc7 {[%emt 0:00:01]} Rb6 {[%emt 0:00:
06]} 38. Be4 {[%emt 0:00:04]} Nxe4 {[%emt 0:00:00]} 39. Kxe4 {[%emt 0:00:00]}
Kg7 {[%emt 0:00:00]} 40. Kf3 {[%emt 0:00:02]} Rb5 {[%emt 0:00:01]} 41. Rc6 {
[%emt 0:00:00]} Kf6 {[%emt 0:00:03]} 42. Rcc7 {[%emt 0:00:01]} Rd5 {[%emt 0:00:
02]} 43. Kg3 {[%emt 0:00:02]} Rb5 {[%emt 0:00:00]} 44. h4 {[%emt 0:00:00]} Kg6
{[%emt 0:00:03]} 45. h5+ {[%emt 0:00:03]} Kf6 {[%emt 0:00:00]} 46. Rc4 {
[%emt 0:00:02]} Rb3 {[%emt 0:00:02]} 47. Kf3 {[%emt 0:00:01]} Rd3 {[%emt 0:00:
00]} 48. Rac7 {[%emt 0:00:02]} Rb3 {[%emt 0:00:01]} 49. Ke4 {[%emt 0:00:02]}
Kg7 {[%emt 0:00:05]} 50. R4c6 {[%emt 0:00:02]} Kf6 {[%emt 0:00:01]} 51. Rc4 {
[%emt 0:00:02]} Kg7 {[%emt 0:00:02]} 52. Rc3 {[%emt 0:00:04]} Rxc3 {[%emt 0:00:
02]} 53. Rxc3 {[%emt 0:00:00]} Kf6 {[%emt 0:00:00]} 54. Rc5 {[%emt 0:00:02]}
Rb8 {[%emt 0:00:02]} 55. Ra5 {[%emt 0:00:03]} Rb4+ {[%emt 0:00:00]} 56. Kf3 {
[%emt 0:00:01]} Rb3 {[%emt 0:00:01]} 57. Ra8 {[%emt 0:00:01]} Rb4 {[%emt 0:00:
03]} 58. Kg3 {[%emt 0:00:01]} Rb3 {[%emt 0:00:00]} 59. Ra7 {[%emt 0:00:00]} Rc3
{[%emt 0:00:03]} 60. Rb7 {[%emt 0:00:02]} Ra3 {[%emt 0:00:00]} 61. Rb4 {
[%emt 0:00:04]} Kg7 {[%emt 0:00:02]} 62. Rc4 {[%emt 0:00:02]} Kf6 {[%emt 0:00:
00]} 63. Rd4 {[%emt 0:00:02]} 1/2-1/2

[Event "RUS-ch Blitz 2021"]
[Site "Sochi"]
[Date "2021.10.11"]
[Round "8.16"]
[White "Oganian, Miran"]
[Black "Bologan, Victor"]
[Result "0-1"]
[ECO "E61"]
[WhiteElo "2441"]
[BlackElo "2574"]
[Annotator "ChessBase"]
[PlyCount "60"]
[EventDate "2021.10.11"]
[EventType "blitz"]
[EventCountry "RUS"]
[SourceTitle "playchess.com"]
[Source "ChessBase"]
[SourceQuality "1"]
[TimeControl "180+2"]

1. d4 {[%emt 0:00:00]} d6 {[%emt 0:00:00]} 2. Nf3 {[%emt 0:00:00]} Nf6 {
[%emt 0:00:00]} 3. c4 {[%emt 0:00:06]} g6 {[%emt 0:00:04]} 4. Nc3 {[%emt 0:00:
00]} Bf5 {[%emt 0:00:00]} 5. Nh4 {[%emt 0:00:17]} Bd7 {[%emt 0:00:06]} 6. e4 {
[%emt 0:00:00]} e5 {[%emt 0:00:09]} 7. Nf3 {[%emt 0:00:07]} Nc6 {[%emt 0:00:00]
} 8. d5 {[%emt 0:00:16]} Ne7 {[%emt 0:00:05]} 9. Be2 {[%emt 0:00:07]} Bg7 {
[%emt 0:00:00]} 10. Bg5 {[%emt 0:00:18]} h6 {[%emt 0:00:00]} 11. Be3 {[%emt 0:
00:07]} Ng4 {[%emt 0:00:08]} 12. Bd2 {[%emt 0:00:00]} f5 {[%emt 0:00:08]} 13.
Nh4 {[%emt 0:00:15]} O-O {[%emt 0:00:18]} 14. exf5 {[%emt 0:00:19]} gxf5 {
[%emt 0:00:10]} 15. h3 {[%emt 0:00:25]} Nf6 {[%emt 0:00:09]} 16. f4 {[%emt 0:
00:00]} c6 {[%emt 0:00:34]} 17. fxe5 {[%emt 0:00:11]} dxe5 {[%emt 0:00:02]} 18.
d6 {[%emt 0:00:00]} Nc8 {[%emt 0:00:04]} 19. c5 {[%emt 0:00:07]} Ne4 {[%emt 0:
00:27]} 20. Nxe4 {[%emt 0:00:47]} Qxh4+ {[%emt 0:00:06]} 21. Nf2 {[%emt 0:00:
00]} Be6 {[%emt 0:00:28]} 22. O-O {[%emt 0:00:00]} b6 {[%emt 0:00:07]} 23. b4 {
[%emt 0:00:00]} e4 {[%emt 0:00:03]} 24. a3 {[%emt 0:00:11]} Qg3 {[%emt 0:00:08]
} 25. Nh1 {[%emt 0:00:00]} Bd4+ {[%emt 0:00:05]} 26. Nf2 {[%emt 0:00:07]} e3 {
[%emt 0:00:07]} 27. Bxe3 {[%emt 0:00:07]} Bxe3 {[%emt 0:00:07]} 28. Qd3 {
[%emt 0:00:03]} Bd5 {[%emt 0:00:03]} 29. Bf3 {[%emt 0:00:08]} Bxf3 {[%emt 0:00:
00]} 30. Qxe3 {[%emt 0:00:02]} Qxg2# {[%emt 0:00:03]} 0-1